bitfinex/quotes_SOLUSD_20251019
["timestamp","ask_amount","ask_price","bid_price","bid_amount"]
[1760912040537,0.1,189.79,189.75,72.67647521]
[1760912040919,0.1,189.79,189.77,10.87647521]
[1760912041120,0.1,189.79,189.78,47.93647521]
[1760912042322,0.1,189.79,189.78,53.20573435]
[1760912043740,0.1,189.79,189.78,42.32925914]
[1760912043949,0.1,189.79,189.78,53.20573435]
[1760912044529,0.1,189.79,189.78,16.14573435]
[1760912044747,0.1,189.79,189.78,5.26925914]
[1760912045042,0.1,189.79,189.78,16.14573435]
[1760912045829,1e-08,189.79,189.78,39.55266026]
[1760912046241,1e-08,189.79,189.78,42.27899446]
[1760912046845,1e-08,189.79,189.78,76.06573435]
[1760912047041,1e-08,189.79,189.78,79.31899446]
[1760912049833,0.1,189.87,189.79,10.87647521]
[1760912050033,0.67,189.86,189.8,37.04]
[1760912050442,0.67,189.86,189.82,10.87647521]
[1760912050736,0.67,189.86,189.83,37.04]
[1760912050938,0.67,189.86,189.83,98.84]
[1760912052030,0.7,189.85,189.83,98.84]
[1760912052531,0.7,189.85,189.84,5.26759376]
[1760912052850,3.25326011,189.86,189.84,5.26759376]
[1760912053045,3.35326011,189.87,189.84,5.26759376]
[1760912053246,0.8,189.87,189.84,5.26759376]
[1760912053440,0.7,189.86,189.84,5.26759376]
[1760912053645,0.7,189.85,189.84,5.26759376]
[1760912054442,3.35326011,189.87,189.84,5.26759376]
[1760912054648,0.71,189.86,189.84,5.26759376]
[1760912055037,0.71,189.85,189.84,5.26759376]
[1760912055237,3.96326011,189.85,189.84,5.26759376]
[1760912056445,3.96326011,189.85,189.83,61.8]
[1760912056655,3.96326011,189.84,189.83,61.8]
[1760912056834,3.96326011,189.84,189.83,67.06780854]
[1760912057650,0.71,189.84,189.83,67.06780854]
[1760912059959,3.96326011,189.84,189.83,67.06780854]
[1760912060641,0.71,189.84,189.83,67.06780854]
[1760912060954,0.71,189.84,189.83,5.26780854]
[1760912061335,3.96326011,189.84,189.83,5.26780854]
[1760912061542,3.96326011,189.86,189.83,5.26780854]
[1760912062045,0.71,189.85,189.83,5.26780854]
[1760912062843,3.96326011,189.84,189.78,10.87647521]
[1760912063045,3.25326011,189.82,189.77,13.1734418]
[1760912063343,0.71,189.81,189.77,13.1734418]
[1760912063544,0.71,189.81,189.78,5.26925914]
[1760912064963,0.71,189.81,189.77,18.4429786]
[1760912065865,0.71,189.8,189.77,18.4429786]
[1760912066472,3.96326011,189.82,189.77,18.4429786]
[1760912066664,0.71,189.81,189.77,18.4429786]
[1760912067467,0.71,189.84,189.78,10.87647521]
[1760912067648,26.84326011,189.86,189.79,37.02]
[1760912068045,3.96326011,189.85,189.79,37.02]
[1760912068264,0.71,189.84,189.79,37.02]
[1760912068569,0.71,189.83,189.79,37.02]
[1760912068758,0.71,189.82,189.79,37.02]
[1760912069368,0.71,189.82,189.8,5.26870389]
[1760912069566,3.25326011,189.83,189.8,5.26870389]
[1760912069955,3.96326011,189.83,189.8,5.26870389]
[1760912070777,0.71,189.82,189.8,5.26870389]
[1760912071070,3.96326011,189.83,189.8,5.26870389]
[1760912071243,0.71,189.82,189.8,5.26870389]
[1760912072249,0.71,189.81,189.8,5.26870389]
[1760912072453,3.96326011,189.81,189.8,5.26870389]
[1760912072648,3.25326011,189.82,189.8,5.26870389]
[1760912072849,3.96326011,189.82,189.8,5.26870389]
[1760912073267,0.71,189.84,189.8,5.26870389]
[1760912073974,0.71,189.84,189.8,18.44046363]
[1760912074160,0.71,189.83,189.8,18.44046363]
[1760912074971,0.71,189.82,189.8,5.26870389]
[1760912075175,3.25326011,189.82,189.8,5.26870389]
[1760912075375,0.71,189.82,189.8,5.26870389]
[1760912075752,0.1,189.87,189.8,5.26870389]
[1760912075966,3.25326011,189.84,189.8,5.26870389]
[1760912076172,0.71,189.83,189.8,5.26870389]
[1760912076774,3.25326011,189.84,189.8,5.26870389]
[1760912076961,3.96326011,189.84,189.8,5.26870389]
[1760912077163,3.25326011,189.84,189.8,5.26870389]
[1760912077474,0.71,189.83,189.8,5.26870389]
[1760912078464,0.1,189.87,189.8,18.44046363]
[1760912078671,3.96326011,189.86,189.8,18.44046363]
[1760912079056,3.96326011,189.86,189.8,80.24046363]
[1760912079775,0.71,189.85,189.8,80.24046363]
[1760912079954,0.71,189.84,189.8,80.24046363]
[1760912080155,0.71,189.83,189.8,80.24046363]
[1760912080781,3.96326011,189.82,189.8,67.06870389]
[1760912080968,3.25326011,189.83,189.8,67.06870389]
[1760912081160,3.96326011,189.84,189.8,67.06870389]
[1760912081583,0.71,189.84,189.8,117.26046363]
[1760912082785,0.71,189.83,189.8,117.26046363]
[1760912083281,3.25326011,189.84,189.8,117.26046363]
[1760912083580,5.36683295,189.87,189.8,117.26046363]
[1760912083581,0.71,189.82,189.8,117.26046363]
[1760912083878,3.25326011,189.83,189.8,117.26046363]
[1760912084055,3.97326011,189.83,189.8,117.26046363]
[1760912085777,3.25326011,189.83,189.8,98.82]
[1760912085977,3.97326011,189.82,189.8,67.068575]
[1760912086163,0.72,189.81,189.8,67.068575]
[1760912086370,3.25326011,189.82,189.8,67.068575]
[1760912086569,3.97326011,189.82,189.8,67.068575]
[1760912086964,3.97326011,189.81,189.8,61.8]
[1760912087458,0.72,189.83,189.8,61.8]
[1760912087658,3.97326011,189.82,189.8,61.8]
[1760912088477,3.97326011,189.82,189.8,67.06870389]
[1760912090695,3.97326011,189.82,189.79,5.2689815]
[1760912091560,3.25326011,189.81,189.79,5.2689815]
[1760912091778,3.97326011,189.81,189.79,5.2689815]
[1760912092775,0.72,189.8,189.79,5.2689815]
[1760912094476,5.26706392,189.86,189.79,5.2689815]
[1760912094682,3.25326011,189.82,189.79,5.2689815]
[1760912094888,0.72,189.81,189.79,5.2689815]
[1760912096086,0.72,189.8,189.79,5.2689815]
[1760912096686,3.25326011,189.84,189.79,18.44143526]
[1760912096881,3.97326011,189.83,189.79,5.2689815]
[1760912097088,3.25326011,189.81,189.79,5.2689815]
[1760912097479,3.97326011,189.82,189.79,5.2689815]
[1760912097783,0.72,189.81,189.79,5.2689815]
[1760912098786,2.80158584,189.81,189.79,5.2689815]
[1760912098993,0.72,189.8,189.79,5.2689815]
[1760912099192,2.80158584,189.8,189.75,10.87647521]
[1760912099393,33.2879292,189.76,189.62,0.11]
[1760912099688,33.2879292,189.76,189.6,0.2]
[1760912099689,2.08158584,189.65,189.61,25.91398343]
[1760912099881,22.88,189.69,189.61,25.91398343]
[1760912100187,2.08158584,189.64,189.61,25.91398343]
[1760912100387,2.08158584,189.63,189.6,0.2]
[1760912100591,28.15189527,189.69,189.6,0.2]
[1760912100785,2.08158584,189.65,189.6,6.16424898]
[1760912100989,2.08158584,189.66,189.61,0.69]
[1760912101193,2.08158584,189.65,189.61,10.87647521]
[1760912101488,2.08158584,189.64,189.61,11.56647521]
[1760912101690,2.08158584,189.64,189.61,10.87647521]
[1760912102098,2.08158584,189.65,189.6,18.65990298]
[1760912102392,2.08158584,189.64,189.6,18.65990298]
[1760912102581,2.08158584,189.64,189.6,19.34990298]
[1760912102777,22.88,189.68,189.61,11.56647521]
[1760912102991,2.08158584,189.66,189.61,11.56647521]
[1760912103180,2.08158584,189.67,189.62,0.69]
[1760912103371,2.80158584,189.67,189.62,0.69]
[1760912103572,2.08158584,189.66,189.62,0.69]
[1760912103774,2.08158584,189.69,189.64,10.87647521]
[1760912103994,2.08158584,189.69,189.65,0.69]
[1760912104593,2.08158584,189.7,189.66,5.27259306]
[1760912104796,2.80158584,189.71,189.66,5.96259306]
[1760912105106,0.72,189.7,189.66,5.96259306]
[1760912105393,2.80158584,189.7,189.66,5.96259306]
[1760912106198,0.72,189.7,189.66,5.96259306]
[1760912106900,5.27043452,189.74,189.67,11.56647521]
[1760912106901,2.08158584,189.74,189.67,11.56647521]
[1760912107200,2.08158584,189.74,189.69,10.87647521]
[1760912107499,0.72,189.73,189.69,10.87647521]
[1760912108082,0.72,189.73,189.7,5.27148128]
[1760912109108,2.08158584,189.74,189.7,5.27148128]
[1760912109294,2.08158584,189.74,189.69,5.27175918]
[1760912109494,2.80158584,189.74,189.69,5.96175918]
[1760912109798,2.08158584,189.73,189.69,5.27175918]
[1760912110104,2.80158584,189.72,189.69,5.27175918]
[1760912110804,2.08158584,189.73,189.69,5.96175918]
[1760912111102,2.08158584,189.75,189.7,0.69]
[1760912111310,10.87647521,189.83,189.7,0.69]
[1760912111311,13.16906301,189.84,189.72,18.4482395]
[1760912111483,0.72,189.83,189.73,11.56647521]
[1760912111684,0.72,189.83,189.72,18.4482395]
[1760912111685,0.72,189.83,189.75,10.87647521]
[1760912111911,0.72,189.86,189.75,10.87647521]
[1760912112214,2.08158584,189.85,189.76,0.69]
[1760912112395,2.08158584,189.84,189.76,0.69]
[1760912112902,2.76158584,189.86,189.77,10.87647521]
[1760912113083,2.08158584,189.85,189.79,10.87647521]
[1760912113284,2.08158584,189.84,189.79,10.87647521]
[1760912113581,2.08158584,189.85,189.8,5.96870389]
[1760912113818,0.1,189.87,189.81,11.57647521]
[1760912113980,2.08158584,189.84,189.8,5.26870389]
[1760912114179,2.08158584,189.82,189.77,42.28952852]
[1760912114390,2.77158584,189.81,189.77,42.28952852]
[1760912115882,13.16860306,189.85,189.75,5.26992375]
[1760912116101,2.08158584,189.76,189.72,5.27092557]
[1760912116303,2.08158584,189.77,189.72,5.27092557]
[1760912116482,2.08158584,189.76,189.72,5.27092557]
[1760912116688,2.08158584,189.76,189.72,5.99092557]
[1760912116889,0.69,189.78,189.73,11.59647521]
[1760912116890,2.08158584,189.77,189.73,11.59647521]
[1760912117103,2.77158584,189.78,189.73,11.59647521]
[1760912117301,2.08158584,189.77,189.72,18.4482395]
[1760912117497,2.08158584,189.75,189.71,10.87647521]
[1760912117691,2.08158584,189.75,189.7,5.27148128]
[1760912117692,2.08158584,189.74,189.7,5.27148128]
[1760912117895,2.08158584,189.74,189.7,16.14795649]
[1760912118093,2.77158584,189.75,189.7,16.86795649]
[1760912118295,2.08158584,189.75,189.7,16.86795649]
[1760912118604,2.08158584,189.75,189.7,30.0466597]
[1760912120198,2.08158584,189.75,189.72,5.27092557]
[1760912120509,22.88,189.81,189.73,0.72]
[1760912120707,5.26703887,189.86,189.73,48.61647521]
[1760912120917,2.08158584,189.77,189.73,47.89647521]
[1760912121086,2.08158584,189.77,189.73,48.61647521]
[1760912121408,2.08158584,189.75,189.72,5.27092557]
[1760912121815,2.08158584,189.77,189.73,0.72]
[1760912122003,2.77158584,189.76,189.72,5.27092557]
[1760912122211,2.08158584,189.78,189.73,0.72]
[1760912122693,5.26843468,189.81,189.71,29.32568715]
[1760912122694,2.77158584,189.77,189.71,29.32568715]
[1760912123007,2.08158584,189.78,189.73,10.87647521]
[1760912123313,2.08158584,189.76,189.71,18.44921194]
[1760912123492,2.08158584,189.75,189.71,18.44921194]
[1760912123893,2.77158584,189.75,189.71,5.27120341]
[1760912124113,2.08158584,189.75,189.71,5.27120341]
[1760912124691,13.17281352,189.79,189.7,5.27148128]
[1760912124897,5.30407095,189.72,189.67,10.87647521]
[1760912125216,5.99407095,189.72,189.67,11.59647521]
[1760912125402,5.99407095,189.72,189.67,10.87647521]
[1760912125710,5.99407095,189.72,189.67,11.59647521]
[1760912125910,5.99407095,189.72,189.67,16.86879028]
[1760912126106,5.99407095,189.72,189.67,30.04957796]
[1760912126711,0.69,189.76,189.69,10.87647521]
[1760912126923,5.30407095,189.77,189.7,0.72]
[1760912128509,5.30407095,189.77,189.71,5.27120341]
[1760912129329,5.99407095,189.78,189.72,10.87647521]
[1760912129497,5.99407095,189.78,189.72,11.59647521]
[1760912129692,5.99407095,189.77,189.71,80.24921194]
[1760912129922,5.30407095,189.75,189.71,67.07120341]
[1760912130122,5.99407095,189.74,189.71,67.07120341]
[1760912130415,5.26927641,189.78,189.7,5.2714491]
[1760912130416,5.30407095,189.72,189.7,5.2714491]
[1760912130604,5.99407095,189.72,189.68,18.45169171]
[1760912131007,0.69,189.71,189.68,18.45169171]
[1760912131415,5.30407095,189.72,189.68,18.45169171]
[1760912131623,5.99407095,189.72,189.68,18.45169171]
[1760912131917,5.30407095,189.7,189.68,5.27203711]
[1760912132114,0.69,189.76,189.69,0.72]
[1760912132315,5.30407095,189.72,189.69,61.8]
[1760912132501,5.30407095,189.7,189.68,67.07203711]
[1760912132702,5.99407095,189.69,189.64,13.18265212]
[1760912132911,5.99407095,189.68,189.65,5.27266136]
[1760912133611,5.30407095,189.72,189.66,0.72]
[1760912134016,5.30407095,189.72,189.67,10.87647521]
[1760912134210,5.30407095,189.73,189.68,0.72]
[1760912134408,5.30407095,189.75,189.69,0.72]
[1760912134717,5.30407095,189.75,189.7,5.27148128]
[1760912134915,5.99407095,189.75,189.7,5.27148128]
[1760912135119,5.99407095,189.74,189.7,5.27148128]
[1760912136221,5.99407095,189.74,189.69,18.45071033]
[1760912136415,5.99407095,189.73,189.69,18.45071033]
[1760912137026,5.30407095,189.73,189.69,5.27175918]
[1760912137228,5.30407095,189.7,189.69,5.27175918]
[1760912137415,5.99407095,189.7,189.69,5.27175918]
[1760912137806,0.69,189.7,189.69,5.27175918]
[1760912138005,0.69,189.7,189.67,5.27208279]
[1760912138218,5.30407095,189.72,189.67,16.148558]
[1760912138422,13.17211904,189.8,189.68,0.72]
[1760912138633,5.30407095,189.74,189.68,62.52]
[1760912139603,5.99407095,189.75,189.69,10.87647521]
[1760912140009,5.99407095,189.75,189.69,47.91647521]
[1760912140925,5.99407095,189.75,189.7,5.27148128]
[1760912141135,28.87407095,189.78,189.71,11.59647521]
[1760912141306,28.87407095,189.78,189.71,73.39647521]
[1760912141521,5.99407095,189.78,189.71,73.39647521]
[1760912142432,0.69,189.78,189.71,73.39647521]
[1760912142632,5.99407095,189.78,189.71,73.39647521]
[1760912142805,5.99407095,189.78,189.71,11.59647521]
[1760912143015,5.99407095,189.78,189.72,5.27092557]
[1760912144130,5.30407095,189.76,189.72,5.27092557]
[1760912144317,5.30407095,189.74,189.71,61.8]
[1760912144523,6.00407095,189.73,189.7,5.27121013]
[1760912144723,0.7,189.73,189.7,5.27121013]
[1760912145117,0.7,189.73,189.69,5.27175918]
[1760912145521,5.30407095,189.74,189.69,5.27175918]
[1760912145731,13.17184583,189.8,189.69,5.27175918]
[1760912145732,3.45489681,189.86,189.73,33.75647521]
[1760912146039,6.00407095,189.85,189.74,37.85]
[1760912146216,0.7,189.84,189.76,10.87647521]
[1760912146417,5.30407095,189.8,189.75,37.85]
[1760912146652,6.00407095,189.8,189.75,37.85]
[1760912147071,0.7,189.8,189.75,37.85]
[1760912147274,0.7,189.8,189.76,5.2698145]
[1760912149346,0.7,189.79,189.76,5.2698145]
[1760912150058,0.7,189.78,189.74,5.27011704]
[1760912150255,0.7,189.77,189.74,5.27011704]
[1760912150973,23.58,189.79,189.74,5.27011704]
[1760912151273,0.7,189.78,189.73,5.27064776]
[1760912153372,0.7,189.77,189.73,5.27064776]
[1760912153579,0.7,189.76,189.73,5.27064776]
[1760912154171,5.30407095,189.78,189.73,5.27064776]
[1760912154674,5.30407095,189.78,189.72,5.27092557]
[1760912154870,0.7,189.77,189.72,5.27092557]
[1760912155172,0.7,189.76,189.72,67.07092557]
[1760912157069,0.7,189.75,189.71,5.27117542]
[1760912158173,0.7,189.74,189.69,5.27167315]
[1760912158360,0.7,189.73,189.69,5.27167315]
[1760912159782,3.25561757,189.75,189.69,5.27167315]
[1760912159968,3.95561757,189.75,189.69,5.94167315]
[1760912160273,0.7,189.75,189.69,5.94167315]
[1760912160465,22.88,189.77,189.69,5.94167315]
[1760912160466,22.88,189.78,189.71,10.87647521]
[1760912160668,22.88,189.78,189.72,0.67]
[1760912161678,32.10418891,189.81,189.73,5.27064776]
[1760912161860,3.25561757,189.82,189.74,0.67]
[1760912162060,3.95561757,189.82,189.74,0.67]
[1760912162464,3.25561757,189.81,189.74,0.67]
[1760912162691,8.05604794,189.81,189.74,0.67]
[1760912162873,8.05604794,189.79,189.73,5.27064776]
[1760912163180,0.7,189.78,189.73,5.27064776]
[1760912163377,8.05604794,189.81,189.73,80.24726716]
[1760912163580,0.7,189.8,189.73,80.91726716]
[1760912165072,0.7,189.8,189.73,80.24726716]
[1760912165316,0.7,189.8,189.74,0.67]
[1760912165492,31.63604794,189.84,189.76,18.44435075]
[1760912165669,8.75604794,189.86,189.77,11.54647521]
[1760912165981,8.85604794,189.88,189.79,10.87647521]
[1760912166156,31.73604794,189.88,189.79,10.87647521]
[1760912166360,31.73604794,189.88,189.8,0.67]
[1760912166690,8.75604794,189.86,189.78,37.14]
[1760912166854,0.7,189.85,189.78,37.81]
[1760912167284,8.05604794,189.86,189.79,0.67]
[1760912167663,0.8,189.87,189.8,5.26870389]
[1760912167872,0.8,189.87,189.81,0.67]
[1760912168962,0.1,189.87,189.82,10.87647521]
[1760912169166,0.1,189.87,189.83,0.67]
[1760912169361,0.1,189.87,189.84,10.87647521]
[1760912169567,0.1,189.87,189.86,16.14351408]
[1760912169785,0.1,189.87,189.86,5.26703887]
[1760912169989,0.1,189.87,189.84,5.26738569]
[1760912170288,8.75604794,189.86,189.82,5.26788133]
[1760912170597,0.1,189.87,189.83,0.67]
[1760912170776,0.1,189.87,189.84,10.87647521]
[1760912171092,0.1,189.88,189.86,10.87647521]
[1760912171272,0.1,189.88,189.87,11.54647521]
[1760912171680,0.1,189.88,189.87,16.81323667]
[1760912175783,0.1,189.88,189.87,78.61323667]
[1760912177487,0.1,189.88,189.87,115.75323667]
[1760912177996,0.1,189.88,189.87,138.63323667]
[1760912178496,1e-08,189.88,189.87,138.63323667]
[1760912179291,1e-08,189.9,189.89,33.75647521]
[1760912179597,1e-08,189.9,189.89,39.54930263]
[1760912179795,1e-08,189.9,189.89,40.19930263]
[1760912180600,1e-08,189.9,189.89,76.79268196]
[1760912181496,0.1,189.94,189.93,33.75647521]
[1760912181688,0.1,189.94,189.93,70.87647521]
[1760912181892,0.1,189.94,189.93,71.52647521]
[1760912182397,0.1,189.95,189.93,71.52647521]
[1760912182617,0.1,189.95,189.94,0.65]
[1760912183078,1e-08,189.95,189.94,73.3264752]
[1760912183685,1e-08,189.95,189.94,78.59129566]
[1760912184286,0.1,189.99,189.95,10.87647521]
[1760912184606,0.66,190.04,189.98,22.88]
[1760912184809,0.66,190.03,189.99,48.07647521]
[1760912185013,0.1,190.06,190.0,37.22]
[1760912185014,0.66,190.02,190.0,37.22]
[1760912185808,0.66,190.01,189.98,10.87647521]
[1760912185977,0.66,190.0,189.96,22.88]
[1760912186182,0.66,189.99,189.97,37.2]
[1760912186390,0.66,189.98,189.97,48.07647521]
[1760912186689,0.66,189.98,189.97,37.2]
[1760912187007,0.66,189.98,189.96,37.2]
[1760912187179,0.66,189.97,189.96,37.2]
[1760912189319,0.66,189.97,189.96,42.46426616]
[1760912189688,0.66,189.97,189.96,67.06426616]
[1760912191812,0.66,189.97,189.96,61.8]
[1760912191996,0.66,189.97,189.95,37.18]
[1760912192199,0.66,189.96,189.95,37.18]
[1760912192823,0.66,189.96,189.94,61.8]
[1760912193110,0.66,189.95,189.94,98.96]
[1760912193319,8.05604794,189.97,189.94,61.8]
[1760912193498,0.66,189.95,189.91,5.26562102]
[1760912193693,0.66,189.94,189.91,42.42562102]
[1760912194004,0.66,189.93,189.91,42.42563184]
[1760912194210,0.66,189.93,189.91,37.16]
[1760912194517,0.66,189.92,189.91,37.16]
[1760912195221,0.66,189.92,189.84,13.16860664]
[1760912195222,8.71604794,189.92,189.84,13.16860664]
[1760912195512,8.05604794,189.89,189.85,32.18]
[1760912195711,0.66,189.88,189.84,37.18]
[1760912196190,0.66,189.87,189.84,42.44754526]
[1760912196395,0.66,189.86,189.84,37.18]
[1760912196706,0.66,189.85,189.84,37.18]
[1760912196919,0.66,189.85,189.83,5.26783932]
[1760912197220,0.66,189.84,189.82,37.18]
[1760912197390,0.66,189.83,189.82,37.18]
[1760912198415,0.66,189.83,189.8,37.18]
[1760912198901,0.66,189.82,189.8,37.18]
[1760912199096,0.66,189.81,189.78,5.26920159]
[1760912199300,8.05604794,189.82,189.78,42.44920159]
[1760912199517,0.66,189.8,189.78,42.44920159]
[1760912200618,23.54,189.87,189.79,11.52647521]
[1760912200993,0.66,189.86,189.79,11.52647521]
[1760912201713,0.66,189.86,189.8,5.26870389]
[1760912201896,0.66,189.86,189.81,37.18]
[1760912202624,24.03898942,189.94,189.81,37.18]
[1760912202625,5.26503898,189.94,189.82,11.52647521]
[1760912202925,0.66,189.91,189.83,0.65]
[1760912203121,0.66,189.91,189.85,10.87647521]
[1760912203488,0.66,189.91,189.86,5.26703887]
[1760912203924,0.66,189.9,189.83,5.26787125]
[1760912204218,8.77604794,189.89,189.83,42.44787125]
[1760912204438,0.72,189.88,189.83,42.44787125]
[1760912204591,8.05604794,189.87,189.82,5.26803599]
[1760912204789,8.77604794,189.86,189.82,5.26803599]
[1760912205014,0.72,189.86,189.82,5.26803599]
[1760912205317,8.77604794,189.89,189.82,5.96803599]
[1760912205703,0.72,189.88,189.82,5.26803599]
[1760912206104,8.77604794,189.87,189.82,5.26803599]
[1760912206321,0.72,189.86,189.82,5.26803599]
[1760912206617,0.72,189.85,189.82,5.26803599]
[1760912207799,8.77604794,189.88,189.82,5.26803599]
[1760912208005,0.72,189.87,189.82,5.26803599]
[1760912208204,0.72,189.86,189.82,5.26803599]
[1760912208718,0.72,189.85,189.82,5.26803599]
[1760912208917,0.72,189.85,189.81,5.26842632]
[1760912209522,0.72,189.85,189.81,18.43949212]
[1760912209723,0.72,189.87,189.81,18.43949212]
[1760912210427,0.72,189.86,189.81,18.43949212]
[1760912210829,0.72,189.85,189.81,18.43949212]
[1760912212007,8.77604794,189.87,189.81,18.43949212]
[1760912212536,0.72,189.87,189.81,18.43949212]
[1760912212824,0.72,189.86,189.81,18.43949212]
[1760912214026,8.77604794,189.85,189.81,61.8]
[1760912214326,8.05604794,189.83,189.78,61.8]
[1760912214505,8.77604794,189.83,189.78,61.8]
[1760912214704,0.72,189.83,189.78,61.8]
[1760912214905,0.72,189.83,189.79,5.26894843]
[1760912215213,0.72,189.83,189.79,67.06894843]
[1760912215728,0.72,189.82,189.79,5.26894843]
[1760912217027,8.05604794,189.84,189.79,5.26894843]
[1760912217233,8.77604794,189.86,189.8,0.7]
[1760912217527,8.77604794,189.86,189.79,18.44140219]
[1760912217720,8.77604794,189.86,189.79,13.87245376]
[1760912218219,0.72,189.85,189.79,13.87245376]
[1760912218532,8.77604794,189.85,189.79,13.87245376]
[1760912219436,0.72,189.86,189.79,0.7]
[1760912219629,8.77604794,189.86,189.8,5.26870389]
[1760912219828,0.72,189.85,189.8,5.26870389]
[1760912220032,0.72,189.84,189.8,5.26870389]
[1760912220228,8.05604794,189.85,189.8,5.26870389]
[1760912220429,0.72,189.87,189.81,0.7]
[1760912220742,0.72,189.88,189.81,0.7]
[1760912221535,5.29705259,189.87,189.8,55.56046363]
[1760912221741,6.01705259,189.87,189.8,56.26046363]
[1760912222232,0.72,189.87,189.81,0.7]
[1760912223727,6.01705259,189.91,189.82,29.31499591]
[1760912224031,0.72,189.91,189.83,0.7]
[1760912224339,0.72,189.91,189.84,47.99647521]
[1760912224542,0.72,189.91,189.84,48.69647521]
[1760912224839,0.72,189.9,189.84,47.99647521]
[1760912225015,0.72,189.89,189.84,47.99647521]
[1760912225926,0.72,189.89,189.85,5.2673163]
[1760912226124,6.01705259,189.88,189.85,5.2673163]
[1760912226338,5.29705259,189.86,189.82,61.8]
[1760912226555,6.01705259,189.85,189.79,134.97203438]
[1760912226840,2.80128106,189.85,189.79,134.97203438]
[1760912227341,2.80128106,189.85,189.8,5.26870389]
[1760912227551,2.80128106,189.85,189.8,5.96870389]
[1760912227713,0.72,189.85,189.8,5.26870389]
[1760912227918,0.72,189.85,189.8,5.96870389]
[1760912228813,2.08128106,189.86,189.8,5.26870389]
[1760912229130,2.08128106,189.83,189.78,0.7]
[1760912229339,2.08128106,189.85,189.79,0.7]
[1760912229519,2.80128106,189.85,189.8,5.26870389]
[1760912229724,0.72,189.84,189.8,5.26870389]
[1760912231446,22.88,189.87,189.78,29.3188822]
[1760912231747,0.71,189.86,189.79,48.70647521]
[1760912231920,0.71,189.86,189.8,0.71]
[1760912232321,2.08128106,189.87,189.8,0.71]
[1760912232537,2.79128106,189.9,189.81,10.87647521]
[1760912232717,2.79128106,189.9,189.83,10.87647521]
[1760912233025,2.08128106,189.88,189.83,37.12]
[1760912233227,2.79128106,189.88,189.83,37.83]
[1760912233437,8.05722517,189.9,189.84,0.71]
[1760912233831,2.08128106,189.89,189.85,5.2673163]
[1760912234033,2.76128106,189.89,189.85,5.2673163]
[1760912234344,2.08128106,189.88,189.85,5.2673163]
[1760912234945,2.76128106,189.88,189.84,5.26759376]
[1760912235927,0.68,189.87,189.84,5.26759376]
[1760912236133,2.76128106,189.87,189.84,5.26759376]
[1760912236852,2.08128106,189.85,189.8,37.1]
[1760912237054,2.76128106,189.85,189.81,5.26817257]
[1760912238557,0.68,189.84,189.81,5.26817257]
[1760912238755,2.76128106,189.84,189.8,5.26868751]
[1760912238942,2.08128106,189.85,189.81,0.67]
[1760912239143,2.08128106,189.85,189.8,5.26868751]
[1760912239346,2.76128106,189.85,189.8,5.93868751]
[1760912239552,2.08128106,189.85,189.8,5.93868751]
[1760912239938,2.76128106,189.85,189.8,5.93868751]
[1760912241463,24.96128106,189.87,189.81,0.67]
[1760912241636,25.64128106,189.87,189.81,0.67]
[1760912242852,13.16511385,189.9,189.81,0.67]
[1760912242853,2.08128106,189.89,189.81,0.67]
[1760912243044,2.76128106,189.89,189.81,62.47]
[1760912243233,2.76128106,189.89,189.82,0.67]
[1760912243434,2.08128106,189.84,189.81,67.0684162]
[1760912243655,0.68,189.85,189.81,5.2684162]
[1760912243852,0.68,189.84,189.8,5.26866603]
[1760912244139,2.76128106,189.83,189.79,67.06897144]
[1760912244338,0.68,189.82,189.79,5.26897144]
[1760912245365,0.68,189.82,189.78,5.26925914]
[1760912245661,2.76128106,189.82,189.78,5.26925914]
[1760912246048,2.08128106,189.83,189.78,5.93925914]
[1760912246363,2.76128106,189.83,189.78,5.93925914]
[1760912247363,2.08128106,189.83,189.78,5.26925914]
[1760912247556,0.68,189.82,189.78,5.26925914]
[1760912248563,2.08128106,189.83,189.78,5.93925914]
[1760912248967,2.76128106,189.82,189.78,5.26925914]
[1760912249564,2.76128106,189.81,189.78,5.26925914]
[1760912249864,2.76128106,189.8,189.76,67.06955132]